bitfinex/quotes_BTCUSD_20250204
["timestamp","ask_amount","ask_price","bid_price","bid_amount"]
[1738674598784,0.150829,99451.0,99442.0,0.23207208]
[1738674599422,0.150831,99449.0,99442.0,0.08123108]
[1738674599623,0.150829,99451.0,99442.0,0.08123108]
[1738674599863,0.10238506,99458.0,99442.0,0.08123108]
[1738674600066,0.201093,99456.0,99442.0,0.08123108]
[1738674600274,0.150838,99444.0,99442.0,0.00033108]
[1738674600482,0.10238506,99443.0,99442.0,0.00133108]
[1738674600689,0.10238506,99443.0,99442.0,0.00180146]
[1738674601522,0.10238506,99443.0,99442.0,0.00080146]
[1738674601928,0.10238506,99443.0,99442.0,0.00180146]
[1738674602672,0.31792997,99443.0,99442.0,0.00180146]
[1738674602886,0.25238506,99443.0,99442.0,0.00180146]
[1738674603280,0.27612782,99443.0,99442.0,0.00180146]
[1738674604520,0.42696782,99443.0,99442.0,0.00180146]
[1738674606410,0.47945719,99443.0,99442.0,0.00180146]
[1738674617203,0.47945719,99443.0,99442.0,0.00080146]
[1738674617615,0.48245719,99443.0,99442.0,0.00080146]
[1738674618575,0.48345719,99443.0,99442.0,0.00080146]
[1738674622950,0.57805771,99443.0,99442.0,0.00080146]
[1738674623361,0.48345719,99443.0,99442.0,0.00080146]
[1738674623936,0.38107213,99443.0,99442.0,0.00080146]
[1738674624061,0.32858276,99443.0,99442.0,0.00080146]
[1738674624270,0.004,99443.0,99442.0,0.07760146]
[1738674624471,0.004,99443.0,99442.0,0.10044581]
[1738674624672,0.004,99443.0,99442.0,0.07760146]
[1738674624875,0.15484,99443.0,99442.0,0.07760146]
[1738674625117,0.15384,99443.0,99442.0,0.07760146]
[1738674625758,0.003,99443.0,99442.0,0.07760146]
[1738674625968,0.003,99443.0,99442.0,0.27714246]
[1738674626180,0.003,99443.0,99442.0,0.37952752]
[1738674626604,0.0001068,99460.0,99458.0,0.150816]
[1738674626813,0.0001068,99460.0,99459.0,0.0761]
[1738674627273,0.201075,99466.0,99459.0,0.0761]
[1738674627491,0.150808,99464.0,99459.0,0.0761]
[1738674627706,0.15081,99463.0,99459.0,0.09479383]
[1738674628122,0.150808,99465.0,99459.0,0.09579383]
[1738674628337,0.05248937,99468.0,99459.0,0.09579383]
[1738674628581,0.05248937,99468.0,99460.0,0.02466138]
[1738674628761,0.05248937,99468.0,99459.0,0.09479383]
[1738674629026,0.201071,99467.0,99459.0,0.09479383]
[1738674629235,0.201071,99467.0,99459.0,0.0761]
[1738674629236,0.150806,99466.0,99459.0,0.0761]
[1738674629462,0.150807,99465.0,99459.0,0.0761]
[1738674629673,0.05248937,99468.0,99459.0,0.0761]
[1738674629920,0.150792,99475.0,99466.0,0.150804]
[1738674630188,0.13588428,99480.0,99460.0,0.07822598]
[1738674630189,0.15,99479.0,99464.0,0.150807]
[1738674630373,0.150795,99473.0,99465.0,0.150805]
[1738674630587,0.1508918,99480.0,99466.0,0.0765]
[1738674630808,0.0001068,99480.0,99467.0,0.03403526]
[1738674631022,0.02384361,99480.0,99468.0,0.20227529]
[1738674631241,0.001,99475.0,99474.0,0.150793]
[1738674631444,0.001,99475.0,99474.0,0.22849922]
[1738674631657,0.001,99475.0,99474.0,0.28931849]
[1738674632075,0.11799108,99500.0,99474.0,0.15720879]
[1738674632290,0.13577748,99500.0,99484.0,0.150777]
[1738674632506,0.201014,99496.0,99485.0,0.0805]
[1738674632717,0.00604112,99499.0,99485.0,0.0805]
[1738674632923,0.00604104,99495.0,99485.0,0.1082196]
[1738674633129,0.150766,99492.0,99485.0,0.1082196]
[1738674633542,0.150768,99491.0,99485.0,0.1082196]
[1738674633787,0.00606653,99494.0,99485.0,0.1082196]
[1738674633976,0.150771,99489.0,99485.0,0.0805]
[1738674634179,0.150773,99488.0,99485.0,0.0805]
[1738674635969,0.201024,99491.0,99485.0,0.0805]
[1738674636165,0.00786875,99487.0,99485.0,0.0805]
[1738674636415,0.00706653,99494.0,99485.0,0.0805]
[1738674636626,0.00706653,99494.0,99486.0,0.02820144]
[1738674636832,0.00606653,99494.0,99486.0,0.02820144]
[1738674637050,0.001,99491.0,99486.0,0.02820144]
[1738674637193,0.15993679,99500.0,99486.0,0.02820144]
[1738674637403,0.00727622,99490.0,99488.0,0.150771]
[1738674637602,0.15076,99496.0,99488.0,0.150771]
[1738674637799,0.00727619,99489.0,99487.0,0.01487012]
[1738674638018,0.16004359,99500.0,99487.0,0.01487012]
[1738674638223,0.00727617,99488.0,99487.0,0.01487012]
[1738674638506,0.201013,99496.0,99487.0,0.01487012]
[1738674638714,0.16004359,99500.0,99486.0,0.001]
[1738674638715,0.150772,99488.0,99486.0,0.001]
[1738674638923,0.201025,99490.0,99486.0,0.001]
[1738674639135,0.00727614,99487.0,99486.0,0.001]
[1738674639315,0.201019,99493.0,99486.0,0.001]
[1738674639513,0.00727614,99487.0,99485.0,0.0805]
[1738674640542,0.00727614,99487.0,99486.0,0.001]
[1738674640740,0.150769,99490.0,99485.0,0.0805]
[1738674640948,0.00727614,99487.0,99485.0,0.0805]
[1738674641121,0.150769,99490.0,99485.0,0.0805]
[1738674641331,0.00727612,99486.0,99485.0,0.0805]
[1738674641586,0.00727612,99486.0,99485.0,0.002]
[1738674641587,0.150774,99486.0,99485.0,0.002]
[1738674641779,0.15804908,99486.0,99485.0,0.002]
[1738674641956,0.32743075,99486.0,99485.0,0.002]
[1738674642156,0.24143414,99486.0,99485.0,0.002]
[1738674642756,0.39143414,99486.0,99485.0,0.002]
[1738674643575,0.15,99485.0,99484.0,0.00047038]
[1738674643776,0.25238506,99485.0,99484.0,0.00047038]
[1738674643952,0.34263767,99485.0,99484.0,0.00047038]
[1738674645295,0.49441367,99485.0,99484.0,0.00047038]
[1738674645514,0.49341367,99485.0,99484.0,0.00047038]
[1738674646308,0.49441367,99485.0,99484.0,0.00047038]
[1738674646885,0.49841367,99485.0,99484.0,0.00047038]
[1738674649240,0.49841367,99485.0,99484.0,0.00094076]
[1738674649466,0.60090839,99485.0,99484.0,0.00094076]
[1738674650404,0.73671776,99485.0,99484.0,7.6e-07]
[1738674650676,0.300791,99475.0,99474.0,4e-08]
[1738674650893,0.15082,99456.0,99455.0,0.08024193]
[1738674651082,0.40320506,99456.0,99455.0,0.08038291]
[1738674651288,0.41065261,99456.0,99455.0,0.00014098]
[1738674651868,0.46314198,99456.0,99455.0,0.00014098]
[1738674652083,0.54554198,99456.0,99455.0,0.00014098]
[1738674652467,0.59064198,99456.0,99455.0,0.00014098]
[1738674652676,0.59464198,99456.0,99455.0,0.00014098]
[1738674653271,0.59564198,99456.0,99455.0,0.00014098]
[1738674655570,0.61708332,99456.0,99455.0,0.00014098]
[1738674655771,0.71957804,99456.0,99455.0,0.00014098]
[1738674656414,0.61708332,99456.0,99455.0,0.00014098]
[1738674660300,0.53468332,99456.0,99455.0,0.00014098]
[1738674660536,0.48958332,99456.0,99455.0,0.00014098]
[1738674662431,0.18470889,99456.0,99455.0,0.00014098]
[1738674662847,0.18470889,99456.0,99455.0,0.12884098]
[1738674662848,0.01244755,99456.0,99455.0,0.12884098]
[1738674663064,0.01244755,99456.0,99455.0,0.14172508]
[1738674663900,0.005,99456.0,99455.0,0.14293153]
[1738674664143,0.005,99456.0,99455.0,0.12884098]
[1738674664359,0.005,99456.0,99455.0,0.27966198]
[1738674664568,0.001,99456.0,99455.0,0.27966198]
[1738674664771,0.001,99456.0,99455.0,0.12884098]
[1738674664968,0.002,99456.0,99455.0,0.12884098]
[1738674665229,0.002,99456.0,99455.0,0.13004743]
[1738674665445,0.001,99456.0,99455.0,0.13004743]
[1738674666158,0.001,99456.0,99455.0,0.13204743]
[1738674666355,0.001,99456.0,99455.0,0.13227171]
[1738674666564,0.001,99456.0,99455.0,0.13027171]
[1738674666770,0.00025,99456.0,99455.0,0.14888475]
[1738674667180,0.182318,99469.0,99455.0,0.14888475]
[1738674667382,0.150808,99465.0,99456.0,0.15082]
[1738674667584,0.00698468,99468.0,99458.0,0.150816]
[1738674667790,0.00698458,99464.0,99458.0,0.150816]
[1738674668177,0.150805,99466.0,99458.0,0.150816]
[1738674668378,0.00698456,99463.0,99459.0,0.01861304]
[1738674668578,0.150807,99465.0,99459.0,0.01861304]
[1738674668779,0.00698453,99462.0,99459.0,0.01861304]
[1738674669143,0.00698451,99461.0,99459.0,0.01861304]
[1738674669509,0.150801,99469.0,99460.0,0.150814]
[1738674669706,0.150802,99468.0,99460.0,0.150814]
[1738674669883,0.15778668,99468.0,99460.0,0.150814]
[1738674670088,0.00698468,99468.0,99467.0,0.0755]
[1738674670471,0.0001068,99474.0,99473.0,0.273694]
[1738674671531,0.0001068,99474.0,99473.0,0.29230704]
[1738674672274,0.1822466,99486.0,99473.0,0.14151304]
[1738674672482,0.15078,99483.0,99475.0,0.150791]
[1738674672904,0.00700718,99482.0,99475.0,0.150791]
[1738674673313,0.00700718,99482.0,99474.0,0.01861304]
[1738674673767,0.150782,99482.0,99474.0,0.01861304]
[1738674674039,0.00700715,99481.0,99474.0,0.01861304]
[1738674674271,0.15079,99476.0,99475.0,0.001]
[1738674674491,0.20104,99483.0,99475.0,0.001]
[1738674674692,0.00704513,99476.0,99474.0,0.01861304]
[1738674674898,0.150789,99477.0,99474.0,0.01861304]
[1738674675311,0.00704513,99476.0,99474.0,0.01961304]
[1738674675510,0.00704513,99476.0,99474.0,0.001]
[1738674675711,0.00704513,99476.0,99473.0,0.1229]
[1738674675954,0.150786,99479.0,99474.0,0.001]
[1738674676350,0.00704217,99478.0,99473.0,0.1229]
[1738674676640,0.00704217,99478.0,99474.0,0.001]
[1738674676856,0.00704217,99478.0,99476.0,0.150788]
[1738674677049,0.00704217,99478.0,99477.0,0.07720619]
[1738674677262,0.000199,99484.0,99477.0,0.10409114]
[1738674677462,0.03379517,99501.0,99495.0,0.077]
[1738674677688,0.150755,99499.0,99495.0,0.077]
[1738674677869,0.13577748,99510.0,99495.0,0.077]
[1738674677870,0.00704007,99500.0,99496.0,0.150759]
[1738674678081,0.13577748,99520.0,99495.0,0.077]
[1738674678082,0.00704002,99498.0,99495.0,0.077]
[1738674678286,0.2010998,99506.0,99498.0,0.150756]
[1738674678471,0.2010998,99506.0,99495.0,0.278014]
[1738674678472,0.150749,99503.0,99495.0,0.077]
[1738674678679,0.00705219,99501.0,99495.0,0.077]
[1738674679025,0.15780519,99501.0,99495.0,0.077]
[1738674679224,0.15780519,99501.0,99495.0,0.078]
[1738674679489,0.150754,99500.0,99495.0,0.078]
[1738674679688,0.150757,99498.0,99495.0,0.078]
[1738674679884,0.150759,99496.0,99495.0,0.078]
[1738674680125,0.00707475,99496.0,99495.0,0.079]
[1738674680327,0.00057689,99502.0,99495.0,0.078]
[1738674680569,0.00057689,99502.0,99495.0,0.077]
[1738674680570,0.150759,99497.0,99495.0,0.077]
[1738674680955,0.00707475,99496.0,99495.0,0.077]
[1738674681697,0.00707475,99496.0,99495.0,0.078]
[1738674682124,0.150771,99488.0,99487.0,0.0758]
[1738674682326,0.150784,99480.0,99478.0,0.0758]
[1738674682731,0.00707355,99479.0,99478.0,0.0758]
[1738674683493,0.00707355,99479.0,99478.0,0.0768]
[1738674684474,0.00707355,99479.0,99478.0,0.10414181]
[1738674684681,0.150771,99489.0,99479.0,0.150785]
[1738674684873,0.15781097,99488.0,99480.0,0.150783]
[1738674685125,0.00703897,99488.0,99481.0,0.150781]
[1738674685335,0.201023,99491.0,99482.0,0.15078]
[1738674685535,0.00703902,99490.0,99480.0,0.150783]
[1738674685747,0.201027,99489.0,99478.0,0.0768]
[1738674685981,0.201029,99488.0,99478.0,0.0768]
[1738674686100,0.0070444,99488.0,99478.0,0.277848]
[1738674686305,0.201018,99494.0,99479.0,0.001]
[1738674686510,0.20806588,99493.0,99479.0,0.001]
[1738674686716,0.150775,99486.0,99478.0,0.226586]
[1738674686945,0.00704668,99485.0,99478.0,0.0758]
[1738674687155,0.150778,99484.0,99478.0,0.226586]
[1738674687348,0.00634198,99484.0,99478.0,0.0758]
[1738674687544,0.150785,99479.0,99478.0,0.0758]
[1738674687799,0.150785,99479.0,99477.0,0.0005]
[1738674687993,0.15712468,99479.0,99478.0,0.001]
[1738674688412,0.150787,99478.0,99477.0,0.0005]
[1738674688836,0.15712665,99478.0,99477.0,0.0005]
[1738674689252,0.00633965,99478.0,99477.0,0.0005]
[1738674689669,0.201027,99489.0,99477.0,0.0005]
[1738674689917,0.02158668,99493.0,99479.0,0.150785]
[1738674690122,0.150775,99486.0,99478.0,0.150786]
[1738674690334,0.150773,99488.0,99477.0,0.0015]
[1738674690515,0.00633414,99485.0,99480.0,0.150783]
[1738674690745,0.00633419,99487.0,99477.0,0.0015]
[1738674690978,0.150772,99488.0,99481.0,0.150782]
[1738674691189,0.00633417,99486.0,99480.0,0.150783]
[1738674691397,0.00633419,99487.0,99477.0,0.0005]
[1738674691575,0.201017,99494.0,99477.0,0.0005]
[1738674691576,0.00633414,99485.0,99484.0,0.150776]
[1738674691787,0.00633417,99486.0,99485.0,0.150776]
[1738674692063,0.150764,99493.0,99486.0,0.150774]
[1738674692282,0.03390187,99501.0,99484.0,0.00120616]
[1738674692482,0.0001067,99501.0,99479.0,0.1278]
[1738674692637,0.150756,99499.0,99492.0,0.150765]
[1738674692844,0.0001067,99501.0,99493.0,0.0150765]
[1738674693020,0.150766,99492.0,99485.0,0.150775]
[1738674693227,0.13577748,99500.0,99480.0,0.201045]
[1738674693605,0.13577748,99500.0,99481.0,0.201043]
[1738674693807,0.15076,99496.0,99489.0,0.150769]
[1738674694010,0.201009,99498.0,99491.0,0.150767]
[1738674694217,0.00665099,99495.0,99490.0,0.18452143]
[1738674694418,0.150762,99495.0,99490.0,0.03375443]
[1738674694651,0.00665097,99494.0,99490.0,0.01867753]
[1738674694946,0.15076,99496.0,99490.0,0.01867753]
[1738674695182,0.00665099,99495.0,99490.0,0.01867753]
[1738674695591,0.150767,99491.0,99490.0,0.01867753]
[1738674696019,0.15742825,99491.0,99490.0,0.01867753]
[1738674696225,0.15742825,99491.0,99490.0,0.01967753]
[1738674696637,0.00666125,99491.0,99490.0,0.01967753]
[1738674696845,0.00666125,99491.0,99490.0,0.001]
[1738674697060,0.0001068,99497.0,99490.0,0.001]
[1738674697539,0.15740238,99496.0,99489.0,0.15077]
[1738674697744,0.00664338,99496.0,99490.0,0.001]
[1738674697950,0.00664338,99496.0,99484.0,0.01867753]
[1738674698159,0.150762,99494.0,99490.0,0.01867753]
[1738674698386,0.150762,99494.0,99490.0,0.01967753]
[1738674698591,0.0066433,99493.0,99490.0,0.01867753]
[1738674699016,0.150764,99493.0,99490.0,0.01967753]
[1738674699218,0.00664328,99492.0,99490.0,0.01867753]
[1738674699795,0.00664328,99492.0,99491.0,0.01867753]
[1738674699994,0.150763,99494.0,99491.0,0.01867753]
[1738674700195,0.00664328,99492.0,99491.0,0.01867753]
[1738674700403,0.150763,99494.0,99491.0,0.01867753]
[1738674700741,0.00664328,99492.0,99491.0,0.01867753]
[1738674700882,0.150763,99494.0,99491.0,0.01867753]
[1738674701082,0.00664328,99492.0,99491.0,0.01867753]
[1738674701283,0.00664328,99492.0,99491.0,0.01967753]
[1738674701603,0.150764,99494.0,99491.0,0.01867753]
[1738674701803,0.00664328,99492.0,99491.0,0.01967753]
[1738674701991,0.150764,99493.0,99491.0,0.01967753]
[1738674702210,0.00664328,99492.0,99491.0,0.01867753]
[1738674702790,0.150762,99494.0,99491.0,0.01867753]
[1738674702986,0.00664328,99492.0,99491.0,0.01967753]
[1738674703187,0.02158403,99495.0,99491.0,0.01967753]
[1738674703398,0.15740828,99492.0,99491.0,0.01967753]
[1738674703683,0.150765,99492.0,99491.0,0.01967753]
[1738674703823,0.15740828,99492.0,99491.0,0.01967753]
[1738674710359,0.15740828,99492.0,99491.0,0.001]
[1738674711008,0.25979334,99492.0,99491.0,0.001]
[1738674713043,0.15740828,99492.0,99491.0,0.001]
[1738674713467,0.00664328,99492.0,99491.0,0.0118426]
[1738674713648,0.00664328,99492.0,99491.0,0.0888426]
[1738674713854,0.150762,99495.0,99491.0,0.0888426]
[1738674713996,0.00663617,99492.0,99491.0,0.0888426]
[1738674714201,0.150761,99495.0,99492.0,0.0187243]
[1738674714515,0.150761,99495.0,99493.0,0.01142179]
[1738674714715,0.0001068,99497.0,99493.0,0.01142179]
[1738674715021,0.0001068,99497.0,99495.0,0.15076]
[1738674715220,0.0001068,99497.0,99496.0,0.150759]
[1738674715607,0.0001068,99497.0,99496.0,0.19943593]
[1738674716432,0.0001067,99501.0,99500.0,0.150753]
[1738674716433,1.35e-05,99501.0,99500.0,0.150753]
[1738674717280,0.15073,99516.0,99500.0,0.150753]
[1738674717492,0.150729,99516.0,99506.0,0.150744]
[1738674717685,0.00683252,99515.0,99507.0,0.150743]
[1738674718003,0.00683252,99515.0,99505.0,0.150745]
[1738674718220,0.00683252,99515.0,99508.0,0.150741]
[1738674718619,0.00683252,99515.0,99509.0,0.0187243]
[1738674718817,0.15458593,99520.0,99512.0,0.150735]
[1738674719025,0.150725,99519.0,99509.0,0.0187243]
[1738674719221,0.00683262,99519.0,99509.0,0.0187243]
[1738674719466,0.150726,99518.0,99509.0,0.1694633]
[1738674719674,0.150726,99518.0,99509.0,0.20301736]
[1738674719844,0.00683257,99517.0,99509.0,0.20301736]
[1738674720287,0.00683257,99517.0,99510.0,0.0187243]
[1738674720639,0.0001068,99515.0,99510.0,0.0187243]
[1738674721411,0.0001068,99515.0,99508.0,0.150741]
[1738674721621,0.00685578,99514.0,99509.0,0.150738]
[1738674721822,0.0001068,99515.0,99510.0,0.150738]
[1738674721968,0.00685575,99513.0,99510.0,0.150738]
[1738674722167,0.00685578,99514.0,99509.0,0.001]
[1738674722374,0.00685573,99512.0,99503.0,0.0814]
[1738674722583,0.150735,99512.0,99511.0,0.01869664]
[1738674723780,0.200976,99514.0,99498.0,0.280409]
[1738674724047,0.150747,99504.0,99498.0,0.0794]
[1738674724233,0.13577748,99510.0,99497.0,0.0005]
[1738674724408,0.150754,99500.0,99497.0,0.0005]
[1738674724619,0.150756,99498.0,99497.0,0.0005]
[1738674725054,0.25314106,99498.0,99497.0,0.0005]
[1738674725255,0.26002324,99498.0,99497.0,0.0005]
[1738674727966,0.25337227,99498.0,99497.0,0.0005]
[1738674731437,0.25337227,99498.0,99497.0,0.0015]
[1738674732037,0.00688218,99498.0,99497.0,0.0005]
[1738674732470,0.0001068,99515.0,99497.0,0.00879243]
[1738674732848,0.0001068,99515.0,99504.0,0.200995]
[1738674733205,0.0001068,99515.0,99514.0,0.150732]
[1738674733405,0.0001068,99515.0,99507.0,0.200989]
[1738674733550,0.0001068,99515.0,99510.0,0.200984]
[1738674733716,0.0001068,99515.0,99511.0,0.150736]
[1738674733922,0.0001068,99515.0,99512.0,0.150735]
[1738674734546,0.0001067,99514.0,99513.0,0.03704054]
[1738674734759,0.0001067,99514.0,99508.0,0.01868641]
[1738674734760,0.150738,99510.0,99508.0,0.01868641]
[1738674734963,0.0001067,99514.0,99499.0,0.01868641]
[1738674735162,0.0001067,99514.0,99500.0,0.150752]
[1738674735163,0.200983,99511.0,99500.0,0.150752]
[1738674735422,0.150738,99510.0,99500.0,0.150752]
[1738674735763,0.0001067,99514.0,99499.0,0.01868641]
[1738674735973,0.150742,99508.0,99500.0,0.150753]
[1738674736153,0.150742,99508.0,99499.0,0.21969241]
[1738674736387,0.00720994,99507.0,99501.0,0.150751]
[1738674736802,0.15795294,99507.0,99499.0,0.351759]
[1738674737011,0.00720994,99507.0,99497.0,0.00072407]
[1738674737432,0.13577748,99510.0,99497.0,0.00072407]
[1738674737433,0.150752,99501.0,99497.0,0.00072407]
[1738674737646,0.150756,99498.0,99497.0,0.00072407]
[1738674738060,0.15798895,99498.0,99497.0,0.00072407]
[1738674739503,0.26037401,99498.0,99497.0,0.00072407]
[1738674739709,0.41037401,99498.0,99497.0,0.00072407]
[1738674740125,0.41037401,99498.0,99497.0,0.00172407]
[1738674740258,0.4297799,99498.0,99497.0,0.00172407]
[1738674742207,0.4297799,99498.0,99497.0,0.00072407]
[1738674742635,0.4297799,99498.0,99497.0,0.00172407]
[1738674747265,0.4107799,99498.0,99497.0,0.00172407]
[1738674750810,0.47933524,99498.0,99497.0,0.00172407]
[1738674751017,0.4107799,99498.0,99497.0,0.00172407]
[1738674753206,0.4710999,99498.0,99497.0,0.00172407]
[1738674754667,0.55389507,99498.0,99497.0,0.00172407]
[1738674755461,0.55389507,99498.0,99497.0,0.00072407]
[1738674755609,0.55689507,99498.0,99497.0,0.00072407]
[1738674756740,0.65938979,99498.0,99497.0,0.00072407]
[1738674757897,0.55689507,99498.0,99497.0,0.00072407]
[1738674758146,0.55689507,99498.0,99491.0,0.00022428]
[1738674758147,0.300765,99492.0,99491.0,0.00022428]
[1738674758347,0.51584523,99492.0,99491.0,0.00022428]
[1738674758571,0.52300909,99492.0,99491.0,0.00022428]
[1738674758796,0.61986967,99492.0,99491.0,0.00022428]
[1738674759151,0.0474,99488.0,99476.0,0.00022407]
[1738674759323,0.300787,99478.0,99476.0,0.00022407]
[1738674759517,0.48197206,99478.0,99476.0,0.00022407]
[1738674759721,0.58776661,99478.0,99476.0,0.00022407]
[1738674760351,0.62156178,99478.0,99476.0,0.00022407]
[1738674761594,0.62924178,99478.0,99476.0,0.00022407]
[1738674761938,0.45179717,99478.0,99476.0,0.00022407]
[1738674762125,0.45279717,99478.0,99476.0,0.00022407]
[1738674762356,0.45179717,99478.0,99476.0,0.00022407]
[1738674762793,0.45579717,99478.0,99476.0,0.00022407]
[1738674763015,0.45279717,99478.0,99476.0,0.00022407]
[1738674763427,0.47163443,99478.0,99476.0,0.00022407]
[1738674764044,0.47063443,99478.0,99476.0,0.00022407]
[1738674764453,0.47463443,99478.0,99476.0,0.00022407]
[1738674764659,0.46695443,99478.0,99476.0,0.00022407]
[1738674765186,0.47095443,99478.0,99476.0,0.00022407]
[1738674765401,0.55825877,99478.0,99476.0,0.00022407]
[1738674766838,0.63915877,99478.0,99476.0,0.00022407]
[1738674768144,0.55185443,99478.0,99476.0,0.00022407]
[1738674768343,0.61317443,99478.0,99476.0,0.00022407]
[1738674772562,0.15082,99456.0,99455.0,0.00022428]
[1738674772800,0.2602919,99456.0,99455.0,0.00022428]
[1738674773727,0.2602919,99456.0,99455.0,0.00122428]
[1738674773965,0.34664689,99456.0,99455.0,0.00122428]
[1738674774162,0.53044206,99456.0,99455.0,0.00122428]
[1738674774581,0.44408707,99456.0,99455.0,0.00122428]
[1738674775019,0.44408707,99456.0,99455.0,0.00022428]
[1738674776019,0.44708707,99456.0,99455.0,0.00022428]
[1738674776432,0.47066426,99456.0,99455.0,0.00022428]
[1738674777902,1.98940169,99456.0,99455.0,0.00022428]
[1738674778195,2.09189641,99456.0,99455.0,0.00022428]
[1738674778833,0.30084,99443.0,99435.0,0.08024193]
[1738674779057,0.40322506,99443.0,99435.0,0.08024193]
[1738674779261,0.41027836,99443.0,99425.0,0.0826]
[1738674779678,0.42901579,99443.0,99425.0,0.0826]
[1738674780077,0.55090554,99443.0,99425.0,0.0826]
[1738674780321,0.55290554,99443.0,99425.0,0.0826]
[1738674780736,0.58289423,99443.0,99425.0,0.0826]
[1738674781643,0.55290554,99443.0,99425.0,0.0826]
[1738674783437,0.57614548,99443.0,99425.0,0.0826]
[1738674783621,0.5180415,99443.0,99425.0,0.0826]
[1738674784162,0.150879,99417.0,99416.0,0.0768]
[1738674784361,0.25326406,99417.0,99416.0,0.0768]
[1738674784636,0.26027293,99417.0,99416.0,0.0768]
[1738674784830,0.27901036,99417.0,99416.0,0.0768]
[1738674785183,0.42901036,99417.0,99416.0,0.0768]
[1738674785396,0.43001036,99417.0,99416.0,0.0768]
[1738674785809,0.45429351,99417.0,99416.0,0.0768]
[1738674786111,0.45429351,99417.0,99403.0,0.00022428]
[1738674786112,0.300899,99404.0,99403.0,0.00022428]
[1738674786501,0.30789695,99404.0,99403.0,0.00022428]
[1738674786730,0.150972,99356.0,99355.0,0.00022428]
[1738674787055,0.15794772,99356.0,99355.0,0.00022428]
[1738674787270,0.00697572,99356.0,99355.0,0.00022428]
[1738674787468,0.15794772,99356.0,99355.0,0.00022428]
[1738674787880,0.14761335,99356.0,99355.0,0.00022428]
[1738674788218,0.17108477,99356.0,99355.0,0.00022428]
[1738674788423,0.00666564,99356.0,99355.0,0.00022428]
[1738674788842,0.17432986,99358.0,99355.0,0.00022428]
[1738674789018,0.15751113,99356.0,99355.0,0.00022428]
[1738674789223,0.10892419,99356.0,99355.0,0.00022428]
[1738674789649,0.10892419,99356.0,99355.0,0.00122428]
[1738674790390,0.10892419,99356.0,99355.0,0.00022428]
[1738674790655,0.00653913,99356.0,99355.0,0.00022428]
[1738674790877,0.00653913,99356.0,99355.0,0.01534481]
[1738674791079,0.02335986,99358.0,99355.0,0.01534481]
[1738674791279,0.00653913,99356.0,99355.0,0.01534481]
[1738674791485,0.10238506,99358.0,99355.0,0.01534481]
[1738674791700,0.13577748,99365.0,99355.0,0.00022428]
[1738674791701,0.00653913,99356.0,99355.0,0.00022428]
[1738674791904,0.02369299,99364.0,99355.0,0.07912428]
[1738674792113,0.00654078,99356.0,99355.0,0.07912428]
[1738674792326,0.03379517,99375.0,99355.0,0.30224011]
[1738674792531,0.13577748,99380.0,99358.0,0.023]
[1738674792733,0.00735924,99374.0,99358.0,0.023]
[1738674792980,0.13577748,99370.0,99358.0,0.023]
[1738674793185,0.13577748,99370.0,99366.0,0.150956]
[1738674793390,0.00861385,99369.0,99366.0,0.150957]
[1738674793793,0.150943,99375.0,99366.0,0.150957]
[1738674793968,0.00861381,99368.0,99367.0,0.150955]
[1738674794175,0.13577748,99376.0,99367.0,0.0765]
[1738674794385,0.13577748,99390.0,99371.0,0.201265]
[1738674794561,0.00865444,99375.0,99374.0,0.150944]
[1738674794775,0.13577748,99400.0,99392.0,0.150917]
[1738674794980,0.10238506,99399.0,99390.0,0.0776]
[1738674795183,0.11104051,99399.0,99390.0,0.0776]
[1738674795353,0.150917,99392.0,99390.0,0.0776]
[1738674795743,0.00868899,99391.0,99390.0,0.0776]
[1738674795947,0.11107405,99391.0,99377.0,0.0795]
[1738674796152,0.150925,99387.0,99377.0,0.0795]
[1738674796594,0.0087011,99386.0,99377.0,0.0795]
[1738674797311,0.00870106,99385.0,99377.0,0.0795]
[1738674797513,0.00870106,99385.0,99383.0,0.150931]
[1738674797719,0.28668248,99400.0,99384.0,0.0431682]
[1738674797928,0.13577748,99394.0,99377.0,0.0795]
[1738674798134,0.13577748,99394.0,99383.0,0.15093]
[1738674798314,0.13577748,99394.0,99384.0,0.150929]
[1738674798894,0.13577748,99394.0,99385.0,0.150927]
[1738674799720,0.13577748,99394.0,99382.0,0.201242]
[1738674800197,0.00725122,99393.0,99385.0,0.150927]
[1738674800396,0.00725122,99393.0,99383.0,0.15093]
[1738674800619,0.00725122,99393.0,99377.0,0.0795]
[1738674800834,0.00725122,99393.0,99379.0,0.201249]
[1738674801038,0.00725122,99393.0,99384.0,0.201238]
[1738674801243,0.00725122,99393.0,99379.0,0.201249]
[1738674801442,0.00725122,99393.0,99384.0,0.150928]
[1738674802072,0.00725122,99393.0,99386.0,0.150926]
[1738674802273,0.00725122,99393.0,99379.0,0.201249]
[1738674802449,0.1240287,99394.0,99379.0,0.201249]
[1738674802853,0.1240287,99394.0,99384.0,0.150928]
[1738674802854,0.00604268,99393.0,99384.0,0.150928]
[1738674803585,0.00604268,99393.0,99377.0,0.0805]
[1738674803792,0.00604268,99393.0,99379.0,0.201249]
[1738674803992,0.00604268,99393.0,99377.0,0.0805]
[1738674803993,0.13577748,99387.0,99377.0,0.0805]
[1738674804203,0.13577748,99387.0,99383.0,0.15093]
[1738674804405,0.0060506,99386.0,99385.0,0.150928]
[1738674804829,0.13577748,99393.0,99383.0,0.15093]
[1738674805163,0.00607139,99392.0,99383.0,0.15093]
[1738674805371,0.00607139,99392.0,99384.0,0.150929]
[1738674805605,0.150915,99394.0,99378.0,0.201251]
[1738674805805,0.00607134,99391.0,99378.0,0.201251]
[1738674806004,0.00607143,99393.0,99382.0,0.150931]
[1738674806350,0.14184887,99392.0,99379.0,0.150935]
[1738674806521,0.14184887,99392.0,99377.0,0.0795]
[1738674806522,0.24423393,99392.0,99377.0,0.0795]
[1738674806704,0.150928,99385.0,99382.0,0.001]
[1738674807101,0.00606711,99384.0,99382.0,0.001]
[1738674807489,0.150923,99388.0,99382.0,0.001]
[1738674807668,0.00505588,99383.0,99382.0,0.001]
[1738674807870,0.10238506,99387.0,99382.0,0.001]
[1738674808176,0.00505588,99383.0,99382.0,0.001]
[1738674808707,0.25331006,99387.0,99382.0,0.001]
[1738674809008,0.00505588,99383.0,99382.0,0.001]
[1738674809210,0.25331606,99383.0,99382.0,0.001]
[1738674809408,0.25837194,99383.0,99382.0,0.001]
[1738674809613,0.30671811,99383.0,99382.0,0.001]